bitfinex/quotes_BTCUSD_20241002
["timestamp","ask_amount","ask_price","bid_price","bid_amount"]
[1727884113827,0.00014,62026.0,62025.0,0.212605]
[1727884114049,0.00014,62026.0,62025.0,0.21582906]
[1727884114269,0.00014,62026.0,62025.0,0.205605]
[1727884114716,0.00014,62026.0,62025.0,0.215605]
[1727884115160,0.00014,62026.0,62025.0,0.204605]
[1727884115670,0.00014,62026.0,62025.0,0.218605]
[1727884115888,0.00014,62026.0,62025.0,0.204605]
[1727884116114,0.00014,62026.0,62025.0,0.205605]
[1727884116367,0.00014,62026.0,62025.0,0.216605]
[1727884116592,0.00014,62026.0,62025.0,0.2188893]
[1727884116821,0.00014,62026.0,62025.0,0.20882917]
[1727884117285,0.00014,62026.0,62025.0,0.21582917]
[1727884117524,0.00014,62026.0,62025.0,0.212605]
[1727884117951,0.00014,62026.0,62025.0,0.205605]
[1727884118891,0.00014,62026.0,62025.0,0.194605]
[1727884119171,0.00014,62026.0,62025.0,0.208605]
[1727884119400,0.00014,62026.0,62025.0,0.204605]
[1727884119625,0.00014,62026.0,62025.0,0.218605]
[1727884119853,0.00014,62026.0,62025.0,0.208605]
[1727884120076,0.00014,62026.0,62025.0,0.194605]
[1727884120307,0.00014,62026.0,62025.0,0.028]
[1727884120538,0.259062,62026.0,62025.0,0.028]
[1727884120753,0.259062,62026.0,62025.0,0.014]
[1727884120973,0.259062,62026.0,62025.0,0.025636]
[1727884121232,0.282062,62026.0,62025.0,0.025636]
[1727884121494,0.09784,62026.0,62025.0,0.186861]
[1727884122173,0.09784,62026.0,62025.0,0.172861]
[1727884122396,0.09784,62026.0,62025.0,0.166861]
[1727884122876,0.09784,62026.0,62025.0,0.167861]
[1727884123105,0.09784,62026.0,62025.0,0.168861]
[1727884123575,0.00014,62026.0,62025.0,0.168861]
[1727884124966,0.00014,62026.0,62025.0,0.007636]
[1727884125194,0.00014,62026.0,62025.0,0.168861]
[1727884125644,0.00014,62026.0,62025.0,0.17208549]
[1727884125878,0.00014,62026.0,62025.0,0.168861]
[1727884127532,0.00014,62026.0,62025.0,0.17208486]
[1727884127753,0.00014,62026.0,62025.0,0.45101433]
[1727884127977,0.00014,62026.0,62025.0,0.44779047]
[1727884128661,0.00014,62026.0,62025.0,0.48017047]
[1727884129552,0.00014,62026.0,62025.0,0.47917047]
[1727884129790,0.00014,62026.0,62025.0,0.48517047]
[1727884130282,0.00014,62026.0,62025.0,0.48917047]
[1727884130519,0.000818,62031.0,62030.0,0.47352147]
[1727884131442,0.000818,62031.0,62030.0,0.162212]
[1727884132099,0.000818,62031.0,62030.0,0.173212]
[1727884132329,0.000818,62031.0,62030.0,0.1764357]
[1727884132551,0.000818,62031.0,62030.0,0.36877871]
[1727884132779,0.000818,62031.0,62030.0,0.38277871]
[1727884133000,0.000818,62031.0,62030.0,0.6266078]
[1727884133239,0.000818,62031.0,62030.0,0.38277871]
[1727884133479,0.000818,62031.0,62030.0,0.48701742]
[1727884134172,0.000818,62031.0,62030.0,0.47301742]
[1727884134401,0.000818,62031.0,62030.0,0.51983037]
[1727884134841,0.000818,62031.0,62030.0,0.54323684]
[1727884135053,0.000818,62031.0,62030.0,0.54351952]
[1727884135491,0.000818,62031.0,62030.0,0.55602022]
[1727884135715,0.000818,62031.0,62030.0,0.54656687]
[1727884135943,0.000818,62031.0,62030.0,0.79039596]
[1727884136162,0.000818,62031.0,62030.0,0.62496687]
[1727884136377,0.00082,62034.0,62033.0,0.194584]
[1727884136613,0.00082,62034.0,62033.0,0.68373395]
[1727884136839,0.00082,62034.0,62033.0,0.52054724]
[1727884137280,0.00082,62034.0,62033.0,0.68373395]
[1727884137503,0.00082,62034.0,62033.0,0.70724963]
[1727884137785,0.00082,62034.0,62033.0,0.69779603]
[1727884138006,0.00082,62034.0,62033.0,0.65070018]
[1727884138232,0.00082,62034.0,62033.0,0.72124963]
[1727884138455,0.00082,62034.0,62033.0,0.82124963]
[1727884138673,0.00082,62034.0,62033.0,0.76270018]
[1727884138918,0.00082,62034.0,62033.0,0.83336344]
[1727884139597,0.00082,62034.0,62033.0,0.76270018]
[1727884139809,0.00082,62034.0,62033.0,0.83339389]
[1727884140529,0.00082,62034.0,62033.0,0.88020368]
[1727884140743,0.00082,62034.0,62033.0,0.86820368]
[1727884140964,0.00082,62034.0,62033.0,0.75070018]
[1727884141418,0.00082,62034.0,62033.0,0.58751347]
[1727884141690,0.00082,62034.0,62033.0,0.28893813]
[1727884141947,0.00082,62034.0,62033.0,0.194584]
[1727884142201,0.00082,62034.0,62033.0,0.208584]
[1727884142456,0.00082,62034.0,62033.0,0.21180751]
[1727884142693,0.00082,62034.0,62033.0,0.208584]
[1727884142894,0.00082,62034.0,62033.0,0.222584]
[1727884144306,0.00082,62034.0,62033.0,0.06138]
[1727884144525,0.00082,62034.0,62033.0,0.06038]
[1727884144526,0.185021,62034.0,62033.0,0.06038]
[1727884145201,0.185021,62034.0,62033.0,0.04638]
[1727884145424,0.185021,62034.0,62033.0,0.05438]
[1727884145873,0.265021,62034.0,62033.0,0.05438]
[1727884146116,0.023,62029.0,62027.0,0.03238]
[1727884146354,0.10382,62034.0,62025.0,0.001636]
[1727884146355,0.184222,62026.0,62025.0,0.001636]
[1727884146585,0.360722,62026.0,62025.0,0.001636]
[1727884147563,0.023,62018.0,62013.0,0.322512]
[1727884147791,0.184244,62018.0,62014.0,0.161253]
[1727884148043,0.184244,62018.0,62012.0,0.24382909]
[1727884148335,0.023,62018.0,62013.0,0.322509]
[1727884148599,0.023,62017.0,62014.0,0.161253]
[1727884148854,0.023,62017.0,62015.0,0.16125]
[1727884149149,0.023,62017.0,62013.0,0.322509]
[1727884149348,0.023,62017.0,62015.0,0.16125]
[1727884149607,0.023,62017.0,62014.0,0.161253]
[1727884150082,0.025,62017.0,62015.0,0.161251]
[1727884150594,0.025,62017.0,62013.0,0.161254]
[1727884150858,0.025,62017.0,62012.0,0.322517]
[1727884150859,0.025,62017.0,62012.0,0.161259]
[1727884151137,0.023,62015.0,62012.0,0.161259]
[1727884151376,0.161249,62016.0,62011.0,0.03238]
[1727884151377,0.023,62013.0,62011.0,0.03238]
[1727884151652,0.161259,62012.0,62011.0,0.03238]
[1727884151929,0.184259,62012.0,62011.0,0.03238]
[1727884152362,0.0989,62012.0,62011.0,0.03238]
[1727884152618,0.023,62013.0,62012.0,0.161259]
[1727884153335,0.023,62013.0,62011.0,0.003]
[1727884153569,0.023,62012.0,62011.0,0.003]
[1727884153811,0.023,62012.0,62011.0,0.196641]
[1727884154055,0.023,62013.0,62012.0,0.161259]
[1727884155072,0.023,62013.0,62012.0,0.162259]
[1727884155318,0.24382909,62020.0,62012.0,0.001]
[1727884155584,0.24382909,62020.0,62014.0,0.322505]
[1727884155830,0.24382909,62020.0,62017.0,0.161245]
[1727884156079,0.261231,62023.0,62018.0,0.161241]
[1727884156335,0.40506309,62022.0,62018.0,0.161241]
[1727884156592,0.023,62021.0,62018.0,0.161241]
[1727884156817,0.161234,62022.0,62017.0,0.322489]
[1727884156818,0.001,62020.0,62019.0,0.16124]
[1727884157012,0.184234,62022.0,62018.0,0.161243]
[1727884157265,0.001,62020.0,62018.0,0.161243]
[1727884157496,0.023,62022.0,62019.0,0.16124]
[1727884157712,0.001,62021.0,62019.0,0.16124]
[1727884157944,0.001,62021.0,62020.0,0.161238]
[1727884158406,0.001,62021.0,62020.0,0.162238]
[1727884159546,0.161219,62028.0,62026.0,0.001]
[1727884159779,0.161215,62029.0,62026.0,0.161222]
[1727884160031,0.023,62025.0,62023.0,0.161229]
[1727884160275,0.023,62025.0,62022.0,0.322465]
[1727884160509,0.023,62028.0,62024.0,0.323455]
[1727884160775,0.023,62030.0,62029.0,0.161214]
[1727884160992,0.023,62033.0,62030.0,0.161211]
[1727884161226,0.023,62033.0,62024.0,0.001]
[1727884161455,0.00082,62034.0,62033.0,0.161204]
[1727884161679,0.00082,62034.0,62033.0,0.162204]
[1727884162376,0.00082,62034.0,62033.0,0.194584]
[1727884165054,0.02482,62034.0,62033.0,0.194584]
[1727884165274,0.02382,62034.0,62033.0,0.194584]
[1727884165491,0.00082,62034.0,62033.0,0.194584]
[1727884165707,0.00182,62034.0,62033.0,0.201584]
[1727884165939,0.02482,62034.0,62033.0,0.201584]
[1727884166158,0.02382,62034.0,62033.0,0.201584]
[1727884166587,0.00082,62034.0,62033.0,0.201584]
[1727884167009,0.00082,62034.0,62033.0,0.205584]
[1727884171190,0.00082,62034.0,62033.0,0.2088079]
[1727884172319,0.00082,62034.0,62033.0,0.285084]
[1727884172542,0.00082,62034.0,62033.0,0.2883074]
[1727884173015,0.00082,62034.0,62033.0,0.3883074]
[1727884173275,0.00082,62034.0,62033.0,0.381084]
[1727884173735,0.00082,62034.0,62033.0,0.395084]
[1727884174175,0.00082,62034.0,62033.0,0.388084]
[1727884174386,0.00082,62034.0,62033.0,0.389084]
[1727884174624,0.00082,62034.0,62033.0,0.39330867]
[1727884174896,0.00082,62034.0,62033.0,0.81432447]
[1727884175116,0.00082,62034.0,62033.0,0.57049538]
[1727884177125,0.00082,62034.0,62033.0,0.32680867]
[1727884177348,0.00082,62034.0,62033.0,0.22580765]
[1727884177572,0.00082,62034.0,62033.0,0.222584]
[1727884178709,0.00082,62034.0,62033.0,0.48577071]
[1727884179583,0.04602,62050.0,62049.0,0.001]
[1727884179809,0.04602,62050.0,62049.0,0.162162]
[1727884180080,0.06902,62050.0,62049.0,0.162162]
[1727884180307,0.05902,62050.0,62049.0,0.162162]
[1727884181185,0.05902,62050.0,62049.0,0.164162]
[1727884181844,0.05902,62050.0,62049.0,0.196542]
[1727884182987,0.05902,62050.0,62049.0,0.198542]
[1727884183480,0.05902,62050.0,62049.0,0.196542]
[1727884184468,0.05902,62050.0,62049.0,0.202542]
[1727884185438,0.03602,62050.0,62049.0,0.202542]
[1727884186383,0.03602,62050.0,62049.0,0.200542]
[1727884187126,0.03602,62050.0,62049.0,0.202542]
[1727884187378,0.03602,62050.0,62049.0,0.214542]
[1727884191111,0.03502,62050.0,62049.0,0.214542]
[1727884192646,0.03502,62050.0,62049.0,0.216178]
[1727884193535,0.035838,62050.0,62049.0,0.216178]
[1727884194419,0.058838,62050.0,62049.0,0.216178]
[1727884194644,0.058838,62050.0,62049.0,0.215178]
[1727884194860,0.157738,62050.0,62049.0,0.215178]
[1727884195851,0.157738,62050.0,62049.0,0.054016]
[1727884196289,0.157738,62050.0,62049.0,0.215178]
[1727884196508,0.157738,62050.0,62049.0,0.054016]
[1727884196949,0.157738,62050.0,62049.0,0.215178]
[1727884197161,0.318898,62050.0,62049.0,0.042016]
[1727884197380,0.318898,62050.0,62049.0,0.011636]
[1727884197600,0.318898,62050.0,62049.0,0.003636]
[1727884198319,0.157738,62050.0,62049.0,0.164798]
[1727884198736,0.158738,62050.0,62049.0,0.162798]
[1727884198994,0.158738,62050.0,62049.0,0.001636]
[1727884199219,0.319898,62050.0,62049.0,0.001636]
[1727884199432,0.158738,62050.0,62049.0,0.001636]
[1727884199883,0.319898,62050.0,62049.0,0.001636]
[1727884200400,0.158738,62050.0,62049.0,0.001636]
[1727884200621,0.159738,62050.0,62049.0,0.162798]
[1727884201753,0.159738,62050.0,62049.0,0.001636]
[1727884201994,0.159738,62050.0,62049.0,0.162798]
[1727884202245,0.159738,62050.0,62049.0,0.163798]
[1727884202488,0.037838,62050.0,62049.0,0.163798]
[1727884203815,0.037838,62050.0,62049.0,0.196178]
[1727884203816,0.036838,62050.0,62049.0,0.196178]
[1727884204065,0.035838,62050.0,62049.0,0.001636]
[1727884204293,0.036838,62050.0,62049.0,0.001636]
[1727884204791,0.035838,62050.0,62049.0,0.002636]
[1727884205036,0.058838,62050.0,62049.0,0.168798]
[1727884205290,0.058838,62050.0,62049.0,0.164798]
[1727884205556,0.058838,62050.0,62049.0,0.163798]
[1727884205793,0.059838,62050.0,62049.0,0.163798]
[1727884207356,0.058838,62050.0,62049.0,0.163798]
[1727884207579,0.058838,62050.0,62049.0,0.164798]
[1727884207797,0.058838,62050.0,62049.0,0.168798]
[1727884208021,0.058838,62050.0,62049.0,0.163798]
[1727884208259,0.059838,62050.0,62049.0,0.163798]
[1727884208898,0.058838,62050.0,62049.0,0.167798]
[1727884209343,0.058838,62050.0,62049.0,0.166798]
[1727884209572,0.058838,62050.0,62049.0,0.005636]
[1727884209794,0.302198,62050.0,62049.0,0.005636]
[1727884210036,0.141038,62050.0,62049.0,0.162798]
[1727884210261,0.141038,62050.0,62049.0,0.163798]
[1727884210479,0.232438,62050.0,62049.0,0.002636]
[1727884210738,0.393598,62050.0,62049.0,0.001636]
[1727884210961,0.394598,62050.0,62049.0,0.001636]
[1727884211179,0.494598,62050.0,62049.0,0.001636]
[1727884211624,0.68050033,62050.0,62049.0,0.001636]
[1727884211839,0.67950033,62050.0,62049.0,0.001636]
[1727884212057,0.68050033,62050.0,62049.0,0.001636]
[1727884212497,0.68150033,62050.0,62049.0,0.001636]
[1727884213398,0.68150033,62050.0,62034.0,0.00201]
[1727884213399,0.001,62045.0,62034.0,0.00201]
[1727884213639,0.467094,62037.0,62036.0,0.24382909]
[1727884213865,0.47110133,62035.0,62034.0,0.00201]
[1727884214087,0.284201,62034.0,62033.0,0.19701]
[1727884215007,0.123,62034.0,62033.0,0.19701]
[1727884215227,0.284201,62034.0,62033.0,0.19701]
[1727884215441,0.285201,62034.0,62033.0,0.19801]
[1727884215951,0.3965891,62034.0,62033.0,0.19801]
[1727884216220,0.3975891,62034.0,62033.0,0.19801]
[1727884216448,0.4875891,62034.0,62033.0,0.09801]
[1727884216668,0.5636891,62034.0,62033.0,0.09801]
[1727884216888,0.161238,62020.0,62019.0,0.24382909]
[1727884217102,0.023,62020.0,62019.0,0.24382909]
[1727884217320,0.184238,62020.0,62016.0,0.162248]
[1727884217546,0.023,62019.0,62016.0,0.162248]
[1727884218028,0.18424,62019.0,62015.0,0.001]
[1727884218287,0.023,62021.0,62019.0,0.16124]
[1727884218534,0.184228,62024.0,62017.0,0.322491]
[1727884218802,0.161235,62022.0,62017.0,0.161244]
[1727884219045,0.322465,62023.0,62017.0,0.161244]
[1727884219046,0.023,62020.0,62017.0,0.161245]
[1727884219284,0.023,62020.0,62019.0,0.16124]
[1727884219555,0.023,62024.0,62019.0,0.16124]
[1727884219780,0.023,62024.0,62021.0,0.161235]
[1727884219781,0.184227,62024.0,62021.0,0.161235]
[1727884220263,0.0761,62028.0,62024.0,0.001]
[1727884220264,0.023,62026.0,62024.0,0.001]
[1727884220509,0.023,62025.0,62023.0,0.001]
[1727884220758,0.023,62026.0,62018.0,0.326151]
[1727884221041,0.1761,62028.0,62018.0,0.326151]
[1727884221042,0.027,62019.0,62018.0,0.003666]
[1727884221255,0.023,62019.0,62018.0,0.003666]
[1727884221708,0.184236,62021.0,62018.0,0.003666]
[1727884222151,0.161238,62020.0,62018.0,0.004666]
[1727884222385,0.025,62019.0,62018.0,0.003666]
[1727884222622,0.36129351,62019.0,62018.0,0.003666]
[1727884223326,0.53069351,62019.0,62018.0,0.003666]
[1727884223763,0.52869351,62019.0,62018.0,0.003666]
[1727884224195,0.53069351,62019.0,62018.0,0.003666]
[1727884224416,0.53069351,62019.0,62018.0,0.004666]
[1727884224628,0.52869351,62019.0,62018.0,0.004666]
[1727884224849,0.53769351,62019.0,62018.0,0.004666]
[1727884225065,0.55169351,62019.0,62018.0,0.005666]
[1727884225253,0.55955692,62019.0,62018.0,0.004666]
[1727884225504,0.55955692,62019.0,62018.0,0.005666]
[1727884225505,0.56855692,62019.0,62018.0,0.005666]
[1727884225716,0.54555692,62019.0,62018.0,0.003666]
[1727884226206,0.55455692,62019.0,62018.0,0.004666]
[1727884227070,0.49250341,62019.0,62018.0,0.005666]
[1727884227515,0.48450341,62019.0,62018.0,0.004666]
[1727884227730,0.47050341,62019.0,62018.0,0.003666]
[1727884227955,0.61005651,62019.0,62018.0,0.004666]
[1727884228167,0.60105651,62019.0,62018.0,0.003666]
[1727884228597,0.62405651,62019.0,62018.0,0.005666]
[1727884229515,0.49250341,62019.0,62018.0,0.005666]
[1727884229737,0.40140341,62019.0,62018.0,0.005666]
[1727884231534,0.32410341,62019.0,62018.0,0.005666]
[1727884232418,0.32410341,62019.0,62018.0,0.004666]
[1727884232419,0.31510341,62019.0,62018.0,0.004666]
[1727884232643,0.31510341,62019.0,62018.0,0.005666]
[1727884232644,0.32410341,62019.0,62018.0,0.005666]
[1727884232859,0.43869788,62019.0,62018.0,0.005666]
[1727884233303,0.42469788,62019.0,62018.0,0.004666]
[1727884233536,0.04886341,62019.0,62018.0,0.004666]
[1727884233760,0.16186341,62019.0,62018.0,0.005666]
[1727884234210,0.31010341,62019.0,62018.0,0.004666]
[1727884234457,0.15886341,62019.0,62018.0,0.005666]
[1727884234677,0.14986341,62019.0,62018.0,0.004666]
[1727884234905,0.13986341,62019.0,62018.0,0.003666]
[1727884235129,0.13986341,62019.0,62018.0,0.004666]
[1727884235130,0.30910341,62019.0,62018.0,0.004666]
[1727884235357,0.31710341,62019.0,62018.0,0.004666]
[1727884235584,0.03886341,62019.0,62018.0,0.166909]
[1727884235809,0.03886341,62019.0,62018.0,0.199289]
[1727884236031,0.02993452,62019.0,62018.0,0.199289]
[1727884236318,0.01593452,62019.0,62018.0,0.198289]
[1727884236551,0.01593452,62019.0,62018.0,0.165909]
[1727884236552,0.00793452,62019.0,62018.0,0.165909]
[1727884236780,0.00793452,62019.0,62018.0,0.38619133]
[1727884236781,0.02193452,62019.0,62018.0,0.38619133]
[1727884237001,0.014,62019.0,62018.0,0.38619133]
[1727884237221,0.006,62019.0,62018.0,0.38519133]
[1727884237681,0.006,62019.0,62018.0,0.39419133]
[1727884237682,0.007,62019.0,62018.0,0.39419133]
[1727884237899,0.24382909,62033.0,62032.0,0.162207]
[1727884238341,0.00082,62034.0,62032.0,0.162207]
[1727884238342,0.00082,62034.0,62033.0,0.162204]
[1727884238568,0.00082,62034.0,62033.0,0.242604]
[1727884239534,0.00082,62034.0,62033.0,0.274984]
[1727884239757,0.00082,62034.0,62033.0,0.27608374]
[1727884239758,0.00382,62034.0,62033.0,0.27608374]
[1727884240003,0.00382,62034.0,62033.0,0.27820765]
[1727884240751,0.00382,62034.0,62033.0,0.28420765]
[1727884240979,0.00082,62034.0,62033.0,0.28420765]
[1727884241208,0.00082,62034.0,62033.0,0.29420765]
[1727884241429,0.00082,62034.0,62033.0,0.27820765]
[1727884241888,0.00082,62034.0,62033.0,0.288984]
[1727884242558,0.00082,62034.0,62033.0,0.298984]
[1727884246347,0.00082,62034.0,62033.0,0.30220747]
[1727884246789,0.00082,62034.0,62033.0,0.298984]
[1727884254376,0.00082,62034.0,62033.0,0.218584]
[1727884255472,0.00082,62034.0,62033.0,0.217584]
[1727884256987,0.00082,62034.0,62033.0,0.207584]
[1727884257242,0.00082,62034.0,62033.0,0.196584]
[1727884257504,0.00082,62034.0,62033.0,0.203584]
[1727884258497,0.54892333,62034.0,62033.0,0.01]
[1727884258771,0.63605406,62034.0,62033.0,0.01]
[1727884259262,0.63705406,62034.0,62033.0,0.01]
[1727884259502,0.63705406,62034.0,62033.0,0.007]
[1727884259737,0.64205406,62034.0,62033.0,0.008]
[1727884259984,0.64105406,62034.0,62033.0,0.008]
[1727884260230,0.322433,62029.0,62021.0,0.001]
[1727884260512,0.47485306,62034.0,62020.0,0.24382909]
[1727884260513,0.023,62026.0,62023.0,0.001]
[1727884260789,0.023,62026.0,62021.0,0.162234]
[1727884261040,0.023,62026.0,62021.0,0.001]
[1727884261298,0.123,62027.0,62022.0,0.161232]
[1727884261563,0.58712733,62034.0,62021.0,0.001]
[1727884261564,0.1,62033.0,62021.0,0.001]
[1727884261763,0.00582,62034.0,62021.0,0.001]
[1727884261764,0.00082,62034.0,62031.0,0.161209]
[1727884261985,0.00082,62034.0,62033.0,0.161204]
[1727884262929,0.00082,62034.0,62033.0,0.45881018]
[1727884263162,0.00082,62034.0,62033.0,0.45558633]
[1727884263609,0.00082,62034.0,62033.0,0.45958633]
[1727884264536,0.00082,62034.0,62033.0,0.197584]
[1727884264771,0.00082,62034.0,62033.0,0.165204]
[1727884265243,0.00082,62034.0,62033.0,0.004]
[1727884265485,0.02382,62034.0,62033.0,0.011]
[1727884265715,0.02382,62034.0,62033.0,0.003]
[1727884265716,0.185021,62034.0,62033.0,0.003]
[1727884265960,0.63973817,62034.0,62033.0,0.003]
[1727884266182,0.39690908,62034.0,62033.0,0.003]
[1727884266409,0.39590908,62034.0,62033.0,0.003]
[1727884266679,0.184235,62021.0,62020.0,0.24382909]
[1727884267161,0.184238,62020.0,62013.0,0.24482909]
[1727884267383,0.184238,62020.0,62013.0,0.40608409]
[1727884268070,0.184238,62020.0,62012.0,0.001636]
[1727884268071,0.52806709,62020.0,62012.0,0.001636]
[1727884268308,0.284238,62020.0,62012.0,0.001636]
[1727884268541,0.284238,62020.0,62019.0,0.00264]
[1727884268542,0.288238,62020.0,62019.0,0.00264]
[1727884268757,0.127,62020.0,62012.0,0.001636]
[1727884268986,0.56332978,62013.0,62012.0,0.001636]
[1727884270579,0.57832978,62013.0,62012.0,0.002636]
[1727884271027,0.56332978,62013.0,62012.0,0.001636]
[1727884271247,0.57732978,62013.0,62012.0,0.001636]
[1727884271458,0.303256,62013.0,62012.0,0.002636]
[1727884272110,0.303256,62013.0,62012.0,0.001636]
[1727884272331,0.298256,62013.0,62012.0,0.001636]
[1727884272544,0.281256,62013.0,62012.0,0.002636]
[1727884273236,0.54632978,62013.0,62012.0,0.002636]
[1727884273665,0.55432978,62013.0,62012.0,0.001636]
[1727884273886,0.57732978,62013.0,62012.0,0.001636]
[1727884274118,0.59232978,62013.0,62012.0,0.002636]
[1727884274361,0.73331206,62013.0,62012.0,0.001636]
[1727884274572,0.74731206,62013.0,62012.0,0.001636]
[1727884274789,0.76131206,62013.0,62012.0,0.002636]
[1727884275019,0.74731206,62013.0,62012.0,0.002636]
[1727884275920,0.74831206,62013.0,62012.0,0.002636]
[1727884276371,0.74731206,62013.0,62012.0,0.002636]
[1727884276606,0.76131206,62013.0,62012.0,0.002636]
[1727884277081,0.76131206,62013.0,61994.0,0.162943]
[1727884277082,0.261303,61995.0,61994.0,0.001638]
[1727884277301,0.284303,61995.0,61994.0,0.001638]
[1727884277751,0.285303,61995.0,61994.0,0.001638]
[1727884278000,0.365203,61995.0,61994.0,0.001638]
[1727884278294,0.51299143,61995.0,61994.0,0.002638]
[1727884278564,0.67617814,61995.0,61994.0,0.001638]
[1727884279083,0.69017814,61995.0,61994.0,0.002638]
[1727884279555,0.6899231,61995.0,61994.0,0.002638]
[1727884279784,0.285324,61987.0,61975.0,0.24382909]
[1727884280018,0.60983117,61987.0,61983.0,0.24382909]
[1727884280237,0.60983117,61987.0,61975.0,0.24382909]
[1727884280732,0.60976012,61987.0,61975.0,0.24382909]
[1727884280946,0.62376012,61987.0,61975.0,0.24382909]
[1727884281398,0.261365,61971.0,61970.0,0.00164]
[1727884281617,0.55788583,61971.0,61970.0,0.00164]
[1727884281835,0.55888583,61971.0,61970.0,0.00164]
[1727884282047,0.58188583,61971.0,61970.0,0.00164]
[1727884282300,0.58088583,61971.0,61970.0,0.00164]
[1727884282529,0.73588921,61971.0,61970.0,0.00164]
[1727884282965,0.45681543,61971.0,61970.0,0.00164]
[1727884283194,0.30181205,61971.0,61970.0,0.00164]
[1727884284084,0.54564114,61971.0,61970.0,0.00164]
[1727884284322,0.3437447,61971.0,61970.0,0.00164]
[1727884284799,0.3297447,61971.0,61970.0,0.00164]
[1727884285022,0.48754135,61971.0,61970.0,0.00164]
[1727884285248,0.44216165,61971.0,61970.0,0.00164]
[1727884285463,0.49455223,61971.0,61970.0,0.00164]
[1727884285694,0.48755223,61971.0,61970.0,0.00164]
[1727884285910,0.50055223,61971.0,61970.0,0.00164]
[1727884286364,0.49755223,61971.0,61970.0,0.00164]
[1727884286598,0.51055223,61971.0,61970.0,0.00164]
[1727884287563,0.50055223,61971.0,61970.0,0.00164]
[1727884287773,0.44216165,61971.0,61970.0,0.00164]
[1727884287992,0.50659086,61971.0,61970.0,0.00164]
[1727884288428,0.49859086,61971.0,61970.0,0.00164]
[1727884288662,0.49859086,61971.0,61959.0,0.24382909]
[1727884288663,0.161394,61960.0,61959.0,0.24382909]
[1727884288881,0.023,61958.0,61951.0,0.23680509]
[1727884289109,0.023,61958.0,61952.0,0.161413]
[1727884289349,0.023,61958.0,61953.0,0.161412]
[1727884289532,0.184398,61959.0,61953.0,0.161412]
[1727884289825,0.023,61960.0,61956.0,0.161403]
[1727884290041,0.023,61965.0,61952.0,0.001]
[1727884290270,0.023,61961.0,61958.0,0.161399]
[1727884290518,0.01748305,61960.0,61956.0,0.322806]
[1727884290740,0.023,61961.0,61959.0,0.161397]
[1727884290975,0.023,61959.0,61958.0,0.161398]
[1727884291652,0.023,61962.0,61959.0,0.161395]
[1727884291889,0.322766,61965.0,61960.0,0.322787]
[1727884291890,0.023,61964.0,61960.0,0.322787]
[1727884292151,0.1,61966.0,61965.0,0.161381]
[1727884292374,0.04532601,61966.0,61965.0,0.001]
[1727884292595,0.01743308,61966.0,61965.0,0.162381]
[1727884293251,0.04525139,61966.0,61965.0,0.001]
[1727884293467,0.1,61973.0,61968.0,0.001]
[1727884293688,0.1,61973.0,61970.0,0.484103]
[1727884293689,0.023,61971.0,61970.0,0.484103]
[1727884293910,0.06820474,61971.0,61970.0,0.484103]
[1727884294352,0.06820474,61971.0,61970.0,0.161367]
[1727884294580,0.06820474,61971.0,61970.0,0.17393269]
[1727884294828,0.04520474,61971.0,61970.0,0.17393269]
[1727884295071,0.007,61971.0,61970.0,0.17393269]
[1727884295301,0.02439893,61971.0,61970.0,0.20731269]
[1727884295527,0.03483829,61971.0,61970.0,0.38313975]
[1727884295755,0.03483829,61971.0,61970.0,0.37991269]
[1727884295756,0.007,61971.0,61970.0,0.37991269]
[1727884296200,0.02445283,61971.0,61970.0,0.37991269]
[1727884296421,0.24382909,61981.0,61980.0,0.161342]
[1727884296641,0.28920599,61981.0,61980.0,0.162342]
[1727884297095,0.0453769,61981.0,61980.0,0.162342]
[1727884297393,0.0683769,61981.0,61980.0,0.162342]
[1727884298074,0.0683769,61981.0,61980.0,0.17480607]
[1727884298298,0.023,61986.0,61980.0,0.01346407]
[1727884298516,0.023,61989.0,61983.0,0.001]
[1727884298732,0.023,61987.0,61986.0,0.161326]
[1727884298970,0.04046552,61987.0,61986.0,0.161326]
[1727884299219,0.04046552,61987.0,61986.0,0.17373575]
[1727884299220,0.04541036,61987.0,61986.0,0.17373575]
[1727884299481,0.04541036,61987.0,61986.0,0.26783575]
[1727884299727,0.04541036,61987.0,61986.0,0.26883575]
[1727884300467,0.05041036,61987.0,61986.0,0.26883575]
[1727884300956,0.07341036,61987.0,61986.0,0.26883575]
[1727884301203,0.06941036,61987.0,61986.0,0.26883575]
[1727884302196,0.06841036,61987.0,61986.0,0.26883575]
[1727884302439,0.06941036,61987.0,61986.0,0.26883575]
[1727884302699,0.09370241,61987.0,61986.0,0.26883575]
[1727884303226,0.06841036,61987.0,61986.0,0.26883575]
[1727884303968,0.07041036,61987.0,61986.0,0.26883575]
[1727884304718,0.01848319,61987.0,61986.0,0.26883575]
[1727884304964,0.0464563,61987.0,61986.0,0.26965675]
[1727884305201,0.0694563,61987.0,61986.0,0.26965675]
[1727884306496,0.0464563,61987.0,61986.0,0.34505675]
[1727884306738,0.24382909,62006.0,61986.0,0.34505675]
[1727884306739,0.24382909,62006.0,62005.0,0.162277]
[1727884307312,0.24382909,62019.0,62012.0,0.162259]
[1727884307632,0.24382909,62019.0,62012.0,0.194639]
[1727884308324,0.02692276,62013.0,62012.0,0.194639]
[1727884308576,0.02177505,62013.0,62012.0,0.194639]
[1727884308830,0.26682909,62019.0,62018.0,0.161243]
[1727884309329,0.023,62025.0,62020.0,0.161236]
[1727884309567,0.023,62025.0,62018.0,0.322485]
[1727884309568,0.023,62025.0,62021.0,0.161234]
[1727884310306,0.023,62025.0,62020.0,0.322476]
[1727884310554,0.023,62025.0,62022.0,0.161232]
[1727884310798,0.029,62025.0,62022.0,0.161232]